[Event "Live Chess"]
[Site "Chess.com"]
[Date "2024.06.02"]
[Round "-"]
[White "seasidecastle27"]
[Black "Duke_of_Bebington"]
[Result "1-0"]
[WhiteElo "1934"]
[BlackElo "1588"]
[TimeControl "300"]
[EndTime "7:33:49 PDT"]
[Termination "seasidecastle27 won by resignation"]

1. d4 {[%clk 0:04:56.1]} 1... d5 {[%clk 0:04:58.9]} 2. Nf3 {[%clk 0:04:55.2]}
2... Nf6 {[%clk 0:04:57.5]} 3. Bf4 {[%clk 0:04:54.2]} 3... c6 {[%clk 0:04:44.5]}
4. e3 {[%clk 0:04:52.9]} 4... Bf5 {[%clk 0:04:42.7]} 5. Bd3 {[%clk 0:04:51.3]}
5... Bxd3 {[%clk 0:04:41.1]} 6. Qxd3 {[%clk 0:04:50.2]} 6... Nbd7 {[%clk
0:04:38.9]} 7. Nbd2 {[%clk 0:04:48.9]} 7... e6 {[%clk 0:04:38]} 8. O-O-O {[%clk
0:04:44.8]} 8... Be7 {[%clk 0:04:37.5]} 9. e4 {[%clk 0:04:41.7]} 9... dxe4
{[%clk 0:04:33.5]} 10. Nxe4 {[%clk 0:04:40.4]} 10... Nd5 {[%clk 0:04:32.9]} 11.
Nd6+ {[%clk 0:04:34.2]} 11... Bxd6 {[%clk 0:04:31.5]} 12. Bxd6 {[%clk
0:04:32.6]} 12... N7b6 {[%clk 0:04:14.6]} 13. Ba3 {[%clk 0:04:27.4]} 13... Nd7
{[%clk 0:03:42.8]} 14. Rhe1 {[%clk 0:04:19.8]} 14... N7f6 {[%clk 0:03:41.6]} 15.
c4 {[%clk 0:04:05.9]} 15... Nf4 {[%clk 0:03:32.9]} 16. Qe3 {[%clk 0:04:01]}
16... Nxg2 {[%clk 0:03:30.7]} 17. Qg5 {[%clk 0:03:56]} 17... Nxe1 {[%clk
0:03:24.9]} 18. Rxe1 {[%clk 0:03:50.1]} 18... g6 {[%clk 0:03:04]} 19. d5 {[%clk
0:03:42.2]} 19... cxd5 {[%clk 0:02:28.1]} 20. cxd5 {[%clk 0:03:33.8]} 20... Rc8+
{[%clk 0:02:17.5]} 21. Kb1 {[%clk 0:03:32.1]} 21... Qxd5 {[%clk 0:02:16]} 22.
Qxf6 {[%clk 0:03:27.9]} 22... Qf5+ {[%clk 0:02:04.2]} 23. Qxf5 {[%clk
0:03:24.4]} 23... gxf5 {[%clk 0:02:04.1]} 24. Nd4 {[%clk 0:03:12.3]} 24... a6
{[%clk 0:02:01.9]} 25. Nxf5 {[%clk 0:03:10.7]} 25... Rg8 {[%clk 0:01:57.6]} 26.
Nd6+ {[%clk 0:03:07.9]} 26... Kd7 {[%clk 0:01:55.5]} 27. Nxc8 {[%clk 0:03:06.2]}
27... Kxc8 {[%clk 0:01:55.4]} 1-0

[Event "Live Chess"]
[Site "Chess.com"]
[Date "2024.06.02"]
[Round "-"]
[White "Ferrarifan27"]
[Black "MagnersCarlsberg2870"]
[Result "1-0"]
[WhiteElo "2140"]
[BlackElo "1773"]
[TimeControl "300"]
[EndTime "7:34:06 PDT"]
[Termination "Ferrarifan27 won by resignation"]

1. e4 {[%clk 0:04:59.2]} 1... d5 {[%clk 0:04:56.5]} 2. exd5 {[%clk 0:04:57.8]}
2... Qxd5 {[%clk 0:04:55.8]} 3. Nc3 {[%clk 0:04:56.7]} 3... Qa5 {[%clk
0:04:52.8]} 4. d4 {[%clk 0:04:55.5]} 4... Nf6 {[%clk 0:04:51.5]} 5. Bd2 {[%clk
0:04:54.4]} 5... Bg4 {[%clk 0:04:47.9]} 6. Be2 {[%clk 0:04:52]} 6... h5 {[%clk
0:04:46.2]} 7. h3 {[%clk 0:04:49.8]} 7... Bxe2 {[%clk 0:04:43.8]} 8. Ngxe2
{[%clk 0:04:49.7]} 8... Qf5 {[%clk 0:04:38.9]} 9. O-O {[%clk 0:04:47.4]} 9...
Nc6 {[%clk 0:04:36.5]} 10. Be3 {[%clk 0:04:38]} 10... O-O-O {[%clk 0:04:33.7]}
11. Qc1 {[%clk 0:04:32.7]} 11... Kb8 {[%clk 0:04:31.5]} 12. b3 {[%clk 0:04:30]}
12... e5 {[%clk 0:04:27.5]} 13. dxe5 {[%clk 0:04:27.9]} 13... Nxe5 {[%clk
0:04:26.3]} 14. a4 {[%clk 0:04:21.2]} 14... Nfg4 {[%clk 0:04:22.1]} 15. Ng3
{[%clk 0:04:11.7]} 15... Qh7 {[%clk 0:04:14.9]} 16. Bf4 {[%clk 0:03:42.8]} 16...
Bd6 {[%clk 0:04:11.9]} 17. Nb5 {[%clk 0:03:33.9]} 17... h4 {[%clk 0:04:00.1]}
18. Ne2 {[%clk 0:03:27.5]} 18... Nf6 {[%clk 0:03:41]} 19. Nxd6 {[%clk
0:03:24.5]} 19... cxd6 {[%clk 0:03:40.1]} 20. Qb2 {[%clk 0:03:20]} 20... Qh5
{[%clk 0:03:35.3]} 21. Rfe1 {[%clk 0:03:12.6]} 21... Qf5 {[%clk 0:03:25.6]} 22.
Rad1 {[%clk 0:03:02.2]} 22... g5 {[%clk 0:03:23.7]} 23. Bxe5 {[%clk 0:02:52.9]}
23... dxe5 {[%clk 0:03:20.6]} 24. Nc1 {[%clk 0:02:41.3]} 24... Ne4 {[%clk
0:03:17.8]} 25. f3 {[%clk 0:02:38]} 25... Ng3 {[%clk 0:03:07.8]} 26. Rxd8+
{[%clk 0:02:33.6]} 26... Rxd8 {[%clk 0:02:56.7]} 27. Nd3 {[%clk 0:02:29.7]}
27... f6 {[%clk 0:02:45.8]} 28. Qa3 {[%clk 0:02:18.9]} 28... Qe6 {[%clk
0:02:25.1]} 29. Qb4 {[%clk 0:02:04.5]} 29... Qc6 {[%clk 0:02:12.5]} 30. Qc5
{[%clk 0:01:33.4]} 30... Qa6 {[%clk 0:01:59.8]} 31. Nb4 {[%clk 0:01:24]} 31...
Qe2 {[%clk 0:01:52.5]} 32. Rxe2 {[%clk 0:01:19.8]} 32... Rd1+ {[%clk 0:01:51.2]}
33. Kf2 {[%clk 0:01:18.1]} 33... Rf1+ {[%clk 0:01:46.4]} 34. Ke3 {[%clk
0:01:17.2]} 1-0

[Event "Live Chess"]
[Site "Chess.com"]
[Date "2024.06.02"]
[Round "-"]
[White "davigator"]
[Black "Larchikov"]
[Result "1-0"]
[WhiteElo "2338"]
[BlackElo "2107"]
[TimeControl "300"]
[EndTime "7:34:15 PDT"]
[Termination "davigator won by resignation"]

1. e4 {[%clk 0:04:52.2]} 1... e5 {[%clk 0:04:57.9]} 2. Nf3 {[%clk 0:04:50.3]}
2... Nc6 {[%clk 0:04:56.7]} 3. Bc4 {[%clk 0:04:48.5]} 3... Bc5 {[%clk
0:04:54.5]} 4. c3 {[%clk 0:04:46.6]} 4... Nf6 {[%clk 0:04:51.7]} 5. d3 {[%clk
0:04:46.1]} 5... d6 {[%clk 0:04:50.4]} 6. O-O {[%clk 0:04:44.8]} 6... O-O {[%clk
0:04:49.5]} 7. Nbd2 {[%clk 0:04:43.1]} 7... Be6 {[%clk 0:04:48.1]} 8. Bxe6
{[%clk 0:04:40.7]} 8... fxe6 {[%clk 0:04:48]} 9. b4 {[%clk 0:04:35.7]} 9... Bb6
{[%clk 0:04:46.2]} 10. Nc4 {[%clk 0:04:35.2]} 10... Qe7 {[%clk 0:04:19.5]} 11.
a4 {[%clk 0:04:33.9]} 11... d5 {[%clk 0:04:08.3]} 12. Ncxe5 {[%clk 0:04:24]}
12... Nxe5 {[%clk 0:04:06.6]} 13. Nxe5 {[%clk 0:04:23.3]} 13... c6 {[%clk
0:03:56.7]} 14. Qe2 {[%clk 0:04:21.4]} 14... dxe4 {[%clk 0:03:48.8]} 15. dxe4
{[%clk 0:04:19]} 15... Bc7 {[%clk 0:03:36.3]} 16. Nc4 {[%clk 0:04:17.9]} 16...
Qf7 {[%clk 0:03:21.2]} 17. f3 {[%clk 0:04:06.2]} 17... Nh5 {[%clk 0:03:16.9]}
18. e5 {[%clk 0:04:01]} 18... Rad8 {[%clk 0:03:11.5]} 19. Be3 {[%clk 0:03:51.8]}
19... Nf4 {[%clk 0:03:09.2]} 20. Qc2 {[%clk 0:03:48.3]} 20... b5 {[%clk
0:03:01.3]} 21. axb5 {[%clk 0:03:42.3]} 21... cxb5 {[%clk 0:03:01.2]} 22. Nd6
{[%clk 0:03:40.3]} 22... Bxd6 {[%clk 0:02:55.2]} 23. exd6 {[%clk 0:03:39.4]}
23... Rd7 {[%clk 0:02:47.7]} 24. Bc5 {[%clk 0:03:37.7]} 24... Nd5 {[%clk
0:02:36.9]} 25. c4 {[%clk 0:03:34.8]} 25... bxc4 {[%clk 0:02:33.5]} 26. Qxc4
{[%clk 0:03:33.9]} 26... Qg6 {[%clk 0:02:21.6]} 27. Kh1 {[%clk 0:03:32.2]} 27...
Nf4 {[%clk 0:02:17]} 28. Ra2 {[%clk 0:03:27.2]} 28... Kh8 {[%clk 0:02:07.8]} 29.
Re1 {[%clk 0:03:24]} 29... h6 {[%clk 0:01:42.8]} 30. Qe4 {[%clk 0:03:16.3]}
30... Qh5 {[%clk 0:01:33]} 31. Rd2 {[%clk 0:03:05.9]} 31... a5 {[%clk
0:01:19.9]} 32. Qc6 {[%clk 0:02:59.5]} 32... Qf7 {[%clk 0:01:13.6]} 33. bxa5
{[%clk 0:02:54]} 33... Nd5 {[%clk 0:01:05.6]} 34. a6 {[%clk 0:02:50]} 34... Qf4
{[%clk 0:00:59.5]} 35. Rde2 {[%clk 0:02:48.9]} 35... Rdf7 {[%clk 0:00:53.3]} 36.
a7 {[%clk 0:02:45.7]} 36... Nc3 {[%clk 0:00:48.2]} 37. Re4 {[%clk 0:02:40.1]}
37... Nxe4 {[%clk 0:00:46.2]} 38. Qxe4 {[%clk 0:02:38.5]} 38... Qxe4 {[%clk
0:00:39.1]} 39. Rxe4 {[%clk 0:02:37.3]} 39... Rd7 {[%clk 0:00:33.8]} 40. Rxe6
{[%clk 0:02:34.2]} 40... Kg8 {[%clk 0:00:30.7]} 41. h4 {[%clk 0:02:31.7]} 41...
Rc8 {[%clk 0:00:26.7]} 42. Re7 {[%clk 0:02:30]} 42... Rxe7 {[%clk 0:00:24.2]}
43. dxe7 {[%clk 0:02:28.8]} 43... Kf7 {[%clk 0:00:23.6]} 44. Bd6 {[%clk
0:02:25.1]} 44... Ra8 {[%clk 0:00:22.7]} 45. Bb8 {[%clk 0:02:24.1]} 45... Kxe7
{[%clk 0:00:21.7]} 46. g4 {[%clk 0:02:23.2]} 46... Kf6 {[%clk 0:00:20.5]} 47.
Kg2 {[%clk 0:02:22.9]} 47... Kf7 {[%clk 0:00:19.8]} 48. Kg3 {[%clk 0:02:22.2]}
48... Kf6 {[%clk 0:00:19.4]} 49. Kf4 {[%clk 0:02:21.6]} 49... Kf7 {[%clk
0:00:18.9]} 50. Kf5 {[%clk 0:02:21]} 50... g6+ {[%clk 0:00:18]} 51. Ke5 {[%clk
0:02:20.3]} 51... Kg7 {[%clk 0:00:17.6]} 52. Ke6 {[%clk 0:02:18.9]} 52... Kh7
{[%clk 0:00:16.5]} 53. Kf7 {[%clk 0:02:17.8]} 53... g5 {[%clk 0:00:15.5]} 54. h5
{[%clk 0:02:17]} 54... Kh8 {[%clk 0:00:14.5]} 55. Kg6 {[%clk 0:02:16.4]} 55...
Kg8 {[%clk 0:00:13.8]} 56. Kxh6 {[%clk 0:02:15.8]} 56... Kh8 {[%clk 0:00:13.7]}
57. Kxg5 {[%clk 0:02:15.2]} 57... Kg8 {[%clk 0:00:13.6]} 58. Kg6 {[%clk
0:02:14.5]} 58... Kh8 {[%clk 0:00:13.5]} 59. f4 {[%clk 0:02:13.4]} 59... Kg8
{[%clk 0:00:13.4]} 60. f5 {[%clk 0:02:13]} 60... Kh8 {[%clk 0:00:12.9]} 61. f6
{[%clk 0:02:12.6]} 61... Kg8 {[%clk 0:00:12.8]} 62. f7+ {[%clk 0:02:11.4]} 1-0

[Event "Live Chess"]
[Site "Chess.com"]
[Date "2024.06.02"]
[Round "-"]
[White "imchessive"]
[Black "V1nas"]
[Result "1/2-1/2"]
[WhiteElo "1583"]
[BlackElo "1320"]
[TimeControl "300"]
[EndTime "7:34:23 PDT"]
[Termination "Game drawn by agreement"]

1. d4 {[%clk 0:04:58.9]} 1... d5 {[%clk 0:04:58.9]} 2. c4 {[%clk 0:04:57.9]}
2... e6 {[%clk 0:04:57.2]} 3. Nf3 {[%clk 0:04:57.1]} 3... c5 {[%clk 0:04:56.7]}
4. cxd5 {[%clk 0:04:55.9]} 4... exd5 {[%clk 0:04:55.8]} 5. Nc3 {[%clk
0:04:55.5]} 5... c4 {[%clk 0:04:49.5]} 6. g3 {[%clk 0:04:53.4]} 6... Bb4 {[%clk
0:04:47.4]} 7. Bg2 {[%clk 0:04:52.2]} 7... Nc6 {[%clk 0:04:46.1]} 8. O-O {[%clk
0:04:50.8]} 8... Nge7 {[%clk 0:04:45.6]} 9. a3 {[%clk 0:04:46.2]} 9... Ba5
{[%clk 0:04:42.3]} 10. b4 {[%clk 0:04:42.9]} 10... Bc7 {[%clk 0:04:31.9]} 11.
Nb5 {[%clk 0:04:39.6]} 11... O-O {[%clk 0:04:29.1]} 12. Nxc7 {[%clk 0:04:35.8]}
12... Qxc7 {[%clk 0:04:29]} 13. Bf4 {[%clk 0:04:35.3]} 13... Qd8 {[%clk
0:04:24.8]} 14. Ne5 {[%clk 0:04:30.2]} 14... Nxe5 {[%clk 0:04:21.3]} 15. Bxe5
{[%clk 0:04:28.3]} 15... f6 {[%clk 0:04:20.8]} 16. Bf4 {[%clk 0:04:25.5]} 16...
Ng6 {[%clk 0:04:17.2]} 17. Qc1 {[%clk 0:04:21.2]} 17... Nxf4 {[%clk 0:04:06.1]}
18. Qxf4 {[%clk 0:04:21.1]} 18... b5 {[%clk 0:03:51.2]} 19. e4 {[%clk
0:04:15.7]} 19... Bb7 {[%clk 0:03:47.1]} 20. exd5 {[%clk 0:04:13]} 20... Bxd5
{[%clk 0:03:45]} 21. Rfe1 {[%clk 0:04:06.5]} 21... Bxg2 {[%clk 0:03:41.8]} 22.
Kxg2 {[%clk 0:04:06.4]} 22... Qd5+ {[%clk 0:03:39.2]} 23. Qe4 {[%clk 0:04:02.5]}
23... Rad8 {[%clk 0:03:31.9]} 24. Rac1 {[%clk 0:03:53.7]} 24... Kf7 {[%clk
0:03:17.8]} 25. Rcd1 {[%clk 0:03:39.7]} 25... f5 {[%clk 0:03:03.4]} 26. Qxd5+
{[%clk 0:03:29.7]} 26... Rxd5 {[%clk 0:03:03.3]} 27. Re5 {[%clk 0:03:24.5]}
27... Rxe5 {[%clk 0:02:54.4]} 28. dxe5 {[%clk 0:03:24.4]} 28... Ke6 {[%clk
0:02:53.4]} 29. f4 {[%clk 0:03:21.9]} 29... g5 {[%clk 0:02:49.7]} 30. Rd6+
{[%clk 0:03:18.6]} 30... Ke7 {[%clk 0:02:47.3]} 31. fxg5 {[%clk 0:02:55.9]}
31... f4 {[%clk 0:02:25.9]} 32. h4 {[%clk 0:02:39.2]} 32... Rc8 {[%clk
0:02:19.3]} 33. gxf4 {[%clk 0:02:32.8]} 33... c3 {[%clk 0:02:18.6]} 34. Rd1
{[%clk 0:02:31.9]} 34... c2 {[%clk 0:02:17.7]} 35. Rc1 {[%clk 0:02:31.3]} 35...
Rc3 {[%clk 0:02:16.7]} 36. Kf2 {[%clk 0:02:26]} 36... Rc4 {[%clk 0:02:14.3]} 37.
Ke3 {[%clk 0:02:23.3]} 37... Ke6 {[%clk 0:02:10.9]} 38. Kd3 {[%clk 0:02:20.6]}
38... Rxf4 {[%clk 0:02:07.4]} 39. Rxc2 {[%clk 0:02:19.5]} 39... Rxh4 {[%clk
0:02:05]} 40. Rc5 {[%clk 0:02:11.9]} 40... Rh3+ {[%clk 0:01:59.8]} 41. Ke4
{[%clk 0:02:09.1]} 41... Rxa3 {[%clk 0:01:58.1]} 42. Rxb5 {[%clk 0:02:08.3]}
42... Ra1 {[%clk 0:01:46.1]} 43. Rb7 {[%clk 0:02:05.9]} 43... Re1+ {[%clk
0:01:37.9]} 44. Kf4 {[%clk 0:01:57.1]} 44... Rf1+ {[%clk 0:01:36.8]} 45. Kg4
{[%clk 0:01:54.1]} 45... Rg1+ {[%clk 0:01:35.8]} 46. Kf4 {[%clk 0:01:51.2]}
46... Rf1+ {[%clk 0:01:34.9]} 47. Kg3 {[%clk 0:01:47.1]} 47... Kxe5 {[%clk
0:01:30]} 48. Rxa7 {[%clk 0:01:42.7]} 48... Rg1+ {[%clk 0:01:29.2]} 49. Kh4
{[%clk 0:01:40.8]} 49... Rh1+ {[%clk 0:01:27.6]} 50. Kg3 {[%clk 0:01:38.6]}
50... Rg1+ {[%clk 0:01:27]} 51. Kf3 {[%clk 0:01:36.9]} 51... Rf1+ {[%clk
0:01:20.6]} 52. Ke2 {[%clk 0:01:33.8]} 52... Rb1 {[%clk 0:01:16.3]} 53. Rxh7
{[%clk 0:01:26.4]} 53... Rxb4 {[%clk 0:01:15.2]} 54. Kf3 {[%clk 0:01:08.9]}
54... Kf5 {[%clk 0:01:12.6]} 55. Rg7 {[%clk 0:01:07.5]} 55... Rf4+ {[%clk
0:01:06.8]} 56. Ke3 {[%clk 0:01:04.1]} 56... Rg4 {[%clk 0:01:04]} 1/2-1/2

[Event "Live Chess"]
[Site "Chess.com"]
[Date "2024.06.02"]
[Round "-"]
[White "DoctorMantisTobogganMD"]
[Black "GerardATHart"]
[Result "1-0"]
[WhiteElo "2240"]
[BlackElo "1412"]
[TimeControl "300"]
[EndTime "7:34:36 PDT"]
[Termination "DoctorMantisTobogganMD won by resignation"]

1. e4 {[%clk 0:04:58.9]} 1... e5 {[%clk 0:04:57.4]} 2. Nc3 {[%clk 0:04:57.9]}
2... Nf6 {[%clk 0:04:55]} 3. Bc4 {[%clk 0:04:57.2]} 3... Nc6 {[%clk 0:04:52.7]}
4. d3 {[%clk 0:04:55.9]} 4... Bc5 {[%clk 0:04:51]} 5. f4 {[%clk 0:04:55.1]} 5...
d6 {[%clk 0:04:49.3]} 6. Nf3 {[%clk 0:04:53.6]} 6... Bg4 {[%clk 0:04:47.5]} 7.
Na4 {[%clk 0:04:49.7]} 7... Bb4+ {[%clk 0:04:36.6]} 8. c3 {[%clk 0:04:47.2]}
8... Ba5 {[%clk 0:04:35.4]} 9. b4 {[%clk 0:04:46.6]} 9... Bb6 {[%clk 0:04:26]}
10. Nxb6 {[%clk 0:04:45.7]} 10... axb6 {[%clk 0:04:24.8]} 11. O-O {[%clk
0:04:44.9]} 11... O-O {[%clk 0:04:21.4]} 12. h3 {[%clk 0:04:41.1]} 12... Bd7
{[%clk 0:04:09.2]} 13. fxe5 {[%clk 0:04:34.8]} 13... Nxe5 {[%clk 0:04:02.8]} 14.
Nxe5 {[%clk 0:04:33.5]} 14... dxe5 {[%clk 0:04:01.5]} 15. Bg5 {[%clk 0:04:32.8]}
15... b5 {[%clk 0:03:54.1]} 16. Bb3 {[%clk 0:04:26.8]} 16... Ra6 {[%clk
0:03:35.4]} 17. Qf3 {[%clk 0:04:11.6]} 17... Rd6 {[%clk 0:03:24.2]} 18. Rad1
{[%clk 0:04:06.1]} 18... Be6 {[%clk 0:03:19.5]} 19. Bxf6 {[%clk 0:04:04.3]}
19... Bxb3 {[%clk 0:03:16.3]} 20. Bxd8 {[%clk 0:04:02.3]} 20... Bxd1 {[%clk
0:03:11]} 21. Rxd1 {[%clk 0:03:59.1]} 21... Rfxd8 {[%clk 0:03:09.1]} 22. Qe3
{[%clk 0:03:54.9]} 22... b6 {[%clk 0:03:01.6]} 23. Kf2 {[%clk 0:03:52.5]} 23...
c5 {[%clk 0:02:59.1]} 24. bxc5 {[%clk 0:03:46.6]} 24... bxc5 {[%clk 0:02:53.5]}
25. Qxc5 {[%clk 0:03:46.5]} 1-0

[Event "Live Chess"]
[Site "Chess.com"]
[Date "2024.06.02"]
[Round "-"]
[White "kylet1990"]
[Black "lyricalschemes"]
[Result "0-1"]
[WhiteElo "750"]
[BlackElo "2221"]
[TimeControl "300"]
[EndTime "7:34:38 PDT"]
[Termination "lyricalschemes won by resignation"]

1. e4 {[%clk 0:04:58.7]} 1... Nf6 {[%clk 0:04:58.6]} 2. e5 {[%clk 0:04:56.8]}
2... Nd5 {[%clk 0:04:57.1]} 3. Bc4 {[%clk 0:04:54.9]} 3... Nb6 {[%clk
0:04:55.6]} 4. Bb3 {[%clk 0:04:53]} 4... d5 {[%clk 0:04:55.2]} 5. Nf3 {[%clk
0:04:52]} 5... c5 {[%clk 0:04:53.3]} 6. d4 {[%clk 0:04:47.8]} 6... c4 {[%clk
0:04:51.3]} 7. Bxc4 {[%clk 0:04:38.8]} 7... dxc4 {[%clk 0:04:49.8]} 8. Bf4
{[%clk 0:04:35.7]} 8... e6 {[%clk 0:04:48.8]} 9. Nc3 {[%clk 0:04:33.4]} 9... Nc6
{[%clk 0:04:46.3]} 10. Ng5 {[%clk 0:04:30.1]} 10... Be7 {[%clk 0:04:41.6]} 11.
Nxf7 {[%clk 0:04:27.6]} 11... Kxf7 {[%clk 0:04:39.1]} 12. Qh5+ {[%clk
0:04:24.7]} 12... g6 {[%clk 0:04:38]} 13. Qh6 {[%clk 0:04:21.9]} 13... Nxd4
{[%clk 0:04:33.8]} 14. O-O {[%clk 0:04:16]} 14... Nf5 {[%clk 0:04:29.2]} 15. Qh3
{[%clk 0:04:09.9]} 15... Bd7 {[%clk 0:04:25.2]} 16. Ne4 {[%clk 0:04:08]} 16...
h6 {[%clk 0:04:22.4]} 17. g4 {[%clk 0:04:04.5]} 17... Nh4 {[%clk 0:04:12.4]} 18.
Bg3 {[%clk 0:03:52.5]} 18... Nf3+ {[%clk 0:04:07.8]} 19. Kg2 {[%clk 0:03:50]}
19... Ng5 {[%clk 0:04:03.6]} 20. Nxg5+ {[%clk 0:03:48.1]} 20... hxg5 {[%clk
0:04:01.4]} 21. Bh4 {[%clk 0:03:42.7]} 21... Rxh4 {[%clk 0:03:59]} 22. Qf3+
{[%clk 0:03:39.4]} 22... Kg7 {[%clk 0:03:51.7]} 23. Rfe1 {[%clk 0:03:36.9]}
23... Bc6 {[%clk 0:03:48.4]} 24. Re4 {[%clk 0:03:31.7]} 24... Qd5 {[%clk
0:03:44.8]} 25. Rae1 {[%clk 0:03:26.7]} 25... Qxe5 {[%clk 0:03:42.7]} 26. Rxe5
{[%clk 0:03:23.3]} 26... Bxf3+ {[%clk 0:03:42.6]} 27. Kxf3 {[%clk 0:03:21.7]}
27... Rf8+ {[%clk 0:03:42.4]} 28. Kg3 {[%clk 0:03:19]} 28... Bd6 {[%clk
0:03:41.4]} 29. Kg2 {[%clk 0:03:10.7]} 29... Rxg4+ {[%clk 0:03:38.5]} 0-1

[Event "Live Chess"]
[Site "Chess.com"]
[Date "2024.06.02"]
[Round "-"]
[White "ShanthamGrarks"]
[Black "KeithArkell"]
[Result "0-1"]
[WhiteElo "1902"]
[BlackElo "2412"]
[TimeControl "300"]
[EndTime "7:34:43 PDT"]
[Termination "KeithArkell won by resignation"]

1. d4 {[%clk 0:04:56.5]} 1... e6 {[%clk 0:04:58.8]} 2. Nc3 {[%clk 0:04:55.5]}
2... d5 {[%clk 0:04:57.6]} 3. g3 {[%clk 0:04:54.5]} 3... Nf6 {[%clk 0:04:56.1]}
4. Bg2 {[%clk 0:04:54.1]} 4... c5 {[%clk 0:04:55.2]} 5. Bg5 {[%clk 0:04:50.8]}
5... cxd4 {[%clk 0:04:54.3]} 6. Qxd4 {[%clk 0:04:48.3]} 6... Nc6 {[%clk
0:04:53.5]} 7. Qd2 {[%clk 0:04:42.5]} 7... Be7 {[%clk 0:04:52.1]} 8. Nf3 {[%clk
0:04:40.4]} 8... Bd7 {[%clk 0:04:51]} 9. O-O {[%clk 0:04:39.5]} 9... O-O {[%clk
0:04:49.7]} 10. a3 {[%clk 0:04:37.7]} 10... Rc8 {[%clk 0:04:48.2]} 11. Rac1
{[%clk 0:04:32.8]} 11... h6 {[%clk 0:04:46.1]} 12. Be3 {[%clk 0:04:22.4]} 12...
Na5 {[%clk 0:04:42]} 13. Bxa7 {[%clk 0:04:06.5]} 13... Nc4 {[%clk 0:04:39.4]}
14. Qe1 {[%clk 0:03:57.2]} 14... b6 {[%clk 0:04:37.7]} 15. b3 {[%clk 0:03:54.1]}
15... Nxa3 {[%clk 0:04:36.4]} 16. Ne5 {[%clk 0:03:37.7]} 16... Qc7 {[%clk
0:04:27.3]} 17. Nxd7 {[%clk 0:03:34.1]} 17... Nxd7 {[%clk 0:04:27.2]} 18. Bxb6
{[%clk 0:03:26.2]} 18... Qxb6 {[%clk 0:04:26.7]} 19. Na4 {[%clk 0:03:24.6]}
19... Qb4 {[%clk 0:04:24.5]} 20. Qxb4 {[%clk 0:03:18.9]} 20... Bxb4 {[%clk
0:04:23]} 21. e4 {[%clk 0:03:08.3]} 21... dxe4 {[%clk 0:04:19.6]} 22. Bxe4
{[%clk 0:03:05.5]} 22... Nc5 {[%clk 0:04:18.3]} 23. Nxc5 {[%clk 0:03:02.8]}
23... Bxc5 {[%clk 0:04:15.9]} 24. c3 {[%clk 0:02:54.9]} 24... Nb5 {[%clk
0:04:12.7]} 25. Bd3 {[%clk 0:02:50.2]} 25... Nxc3 {[%clk 0:04:11]} 26. Ba6
{[%clk 0:02:45.8]} 26... Rc6 {[%clk 0:04:07.8]} 27. Bb7 {[%clk 0:02:41.7]} 27...
Ne2+ {[%clk 0:04:05.2]} 28. Kg2 {[%clk 0:02:37.6]} 28... Rc7 {[%clk 0:04:03.1]}
29. Rc2 {[%clk 0:02:22]} 29... Nd4 {[%clk 0:04:02.1]} 30. Rc4 {[%clk 0:02:17.4]}
30... Rxb7 {[%clk 0:04:00.4]} 31. Rxc5 {[%clk 0:02:15.9]} 31... Nxb3 {[%clk
0:03:59.8]} 32. Rb5 {[%clk 0:02:13.8]} 32... Rxb5 {[%clk 0:03:58.2]} 33. Rc1
{[%clk 0:02:11.4]} 33... Nxc1 {[%clk 0:03:57]} 0-1

[Event "Live Chess"]
[Site "Chess.com"]
[Date "2024.06.02"]
[Round "-"]
[White "Mikhail_Golubev"]
[Black "booktrunk"]
[Result "1-0"]
[WhiteElo "2493"]
[BlackElo "1491"]
[TimeControl "300"]
[EndTime "7:34:56 PDT"]
[Termination "Mikhail_Golubev won by checkmate"]

1. e4 {[%clk 0:04:57.2]} 1... b6 {[%clk 0:04:47.9]} 2. d4 {[%clk 0:04:48.8]}
2... Bb7 {[%clk 0:04:47.8]} 3. Bd3 {[%clk 0:04:47.2]} 3... e6 {[%clk 0:04:45.8]}
4. Nf3 {[%clk 0:04:45.3]} 4... h6 {[%clk 0:04:44.1]} 5. O-O {[%clk 0:04:39.4]}
5... Nf6 {[%clk 0:04:39.9]} 6. Re1 {[%clk 0:04:35.3]} 6... Bb4 {[%clk
0:04:36.3]} 7. c3 {[%clk 0:04:29.8]} 7... Be7 {[%clk 0:04:34.6]} 8. e5 {[%clk
0:04:21.6]} 8... Nh7 {[%clk 0:04:31.6]} 9. Nbd2 {[%clk 0:04:10.6]} 9... f6
{[%clk 0:04:30.1]} 10. exf6 {[%clk 0:03:13.1]} 10... Nxf6 {[%clk 0:04:25.7]} 11.
Bg6+ {[%clk 0:03:07.7]} 11... Kf8 {[%clk 0:04:24.7]} 12. Ne5 {[%clk 0:03:06.9]}
12... Rg8 {[%clk 0:04:11.5]} 13. Nf7 {[%clk 0:02:58.7]} 13... Qc8 {[%clk
0:04:10.1]} 14. Nf3 {[%clk 0:02:53.2]} 14... c5 {[%clk 0:04:08.4]} 15. Bf4
{[%clk 0:02:41.1]} 15... Qc6 {[%clk 0:04:06]} 16. N7e5 {[%clk 0:02:27.2]} 16...
Qc8 {[%clk 0:03:58.9]} 17. Nh4 {[%clk 0:01:03.8]} 17... Nc6 {[%clk 0:03:48.3]}
18. Bh5 {[%clk 0:00:41.1]} 18... Nxe5 {[%clk 0:03:43.9]} 19. dxe5 {[%clk
0:00:37.3]} 19... g5 {[%clk 0:03:27]} 20. exf6 {[%clk 0:00:34.4]} 20... Bxf6
{[%clk 0:03:22.5]} 21. Bd6+ {[%clk 0:00:33.3]} 21... Kg7 {[%clk 0:03:19.4]} 22.
Qd3 {[%clk 0:00:30.8]} 22... Kh8 {[%clk 0:03:14.3]} 23. Ng6+ {[%clk 0:00:29]}
23... Kg7 {[%clk 0:03:10.3]} 24. Ne7 {[%clk 0:00:27.8]} 24... Kh8 {[%clk
0:03:07.1]} 25. Nxc8 {[%clk 0:00:25.9]} 25... Raxc8 {[%clk 0:03:05.9]} 26. Be5
{[%clk 0:00:25.5]} 26... Bg7 {[%clk 0:03:01.9]} 27. Qxd7 {[%clk 0:00:23.2]}
27... Bd5 {[%clk 0:02:55.4]} 28. Bxg7+ {[%clk 0:00:21]} 28... Rxg7 {[%clk
0:02:51.9]} 29. Qxc8+ {[%clk 0:00:20.5]} 29... Rg8 {[%clk 0:02:51]} 30. Qc7
{[%clk 0:00:19.6]} 30... Rg7 {[%clk 0:02:49.8]} 31. Qe5 {[%clk 0:00:19.4]} 31...
Kg8 {[%clk 0:02:45.2]} 32. Rad1 {[%clk 0:00:19.3]} 32... Kf8 {[%clk 0:02:42.2]}
33. Rxd5 {[%clk 0:00:18]} 33... exd5 {[%clk 0:02:40.6]} 34. Qe8# {[%clk
0:00:15.5]} 1-0